Workbook

Sheet Executive Summary
A1: 601 Stockton
A3: Executive Summary
A5: Property Summary
A7: Address | B7: 601 Stockton Street
A8: Owner | C8: 22 E Broad LLC
A9: Square Feet | C9: 10152
A10: Residential Units | C10: 12
A11: Parking Spaces | C11: 18
A12: Occupancy as of October 1, 2020 | C12: ='Rent Roll - December 1, 2025'!H9 -> 0.9166666667
A13: Year Built | C13: 1910
A14: Year Renovated | C14: 2015
A17: Acquisition Summary
A19: Purchase Price | C19: 2200000
A20: Capitalization Rate on Pro Forma NOI | C20: ='10 yr Pro Forma'!C28/'Executive Summary'!C19 -> 0.06192709443
A21: Price Per Unit | C21: =C19/(C10) -> 183333.3333
A22: Price Per SF | C22: =C19/C9 -> 216.7060678

Sheet Rent Roll - December 1, 2025
A1: 601 Stockton
B3: Unit Summary as of December 1, 2025
A5: Summary
B6: Studio | C6: 0 | D6: =C6/$C10 -> 0 | E6: Annual Income | F6: =(E25+G25)*12 -> 199644
B7: 1-bed | C7: 9 | D7: =C7/$C10 -> 0.75 | E7: Average Rent | F7: =AVERAGE(E13:E24) -> 1332.25
B8: 2-bed | C8: 3 | D8: =C8/$C10 -> 0.25 | E8: Average SF | F8: =AVERAGE(D13:D24) -> 735.8333333
B9: Commercial | C9: 0 | D9: =C9/$C10 -> 0 | E9: Occupied | F9: 11 | H9: =F9/C10 -> 0.9166666667
B10: Total | C10: =SUM(C6:C9) -> 12 | D10: =C10/$C10 -> 1 | E10: Vacant | F10: 1 | H10: =F10/C10 -> 0.08333333333
B12: Unit | C12: Type | D12: SF | E12: Rent | F12: Rent Per SF | G12: Other Fees | H12: Lease end date
B13: 101 | C13: 1-bed | D13: 617 | E13: 1256 | F13: =E13/D13 -> 2.035656402 | G13: 80 | H13: 2026-07-29
B14: 102 | C14: 1-bed | D14: 650 | E14: 1267 | F14: =E14/D14 -> 1.949230769 | G14: 45 | H14: 2025-05-24
B15: 103 | C15: 2-bed | D15: 972 | E15: 1588 | F15: 1.633744856 | G15: 45 | H15: 2026-04-20
B16: 104 | C16: 1-bed | D16: 644 | E16: 1057 | F16: 1.641304348 | G16: 70 | H16: 2026-07-15
B17: 105 | C17: 1-bed | D17: 766 | E17: 1329 | F17: =E17/D17 -> 1.734986945 | G17: 45 | H17: 2026-02-24
B18: 106 | C18: 2-bed | D18: 987 | E18: 1692 | F18: 1.714285714 | G18: 70 | H18: 2026-06-10
B19: 107 | C19: 1-bed | D19: 666 | E19: 1121 | F19: 1.683183183 | G19: 80 | H19: 2021-03-31
B20: 108 | C20: 1-bed | D20: 679 | E20: 1275 | F20: 1.877761414 | G20: 80
B21: 201 | C21: 1-bed | D21: 765 | E21: 1312 | F21: 1.71503268 | G21: 45 | H21: 2025-11-17
B22: 202 | C22: 1-bed | D22: 557 | E22: 1183 | F22: 2.123877917 | G22: 35 | H22: 2026-11-18
B23: 203 | C23: 2-bed | D23: 873 | E23: 1761 | F23: 2.017182131 | G23: 45 | H23: 2026-10-02
B24: 204 | C24: 1-bed | D24: 654 | E24: 1146 | F24: 1.752293578 | G24: 10 | H24: 2026-02-27
B25: TOTAL | D25: =SUM(D13:D24) -> 8830 | E25: =SUM(E13:E24) -> 15987 | F25: 1.810532276 | G25: =SUM(G13:G24) -> 650

Sheet 10 yr Pro Forma
A1: 601 Stockton
A3: Pro Forma - Cash Flow Projections
A4: Assumptions
A6: Annual Rent & Other Income Growth | B6: 0.03
A7: Expense Escalation | B7: 0.02
A8: Vacancy | B8: 0.05
A9: Management Fee (Percent of EGI) | B9: 0.035
A11: Year | B11: 2026 | C11: 2027 | D11: 2028 | E11: 2029 | F11: 2030 | G11: 2031 | H11: 2032 | I11: 2033 | J11: 2034 | K11: 2035 | L11: 2036
A13: INCOME
A14: Rental Income | B14: ='Rent Roll - December 1, 2025'!F6 -> 199644 | C14: ='Rent Roll - December 1, 2025'!F6*(1+$B6)+12000 -> 217633.32 | D14: =C14*(1+$B6) -> 224162.3196 | E14: 230887.1892 | F14: 237813.8049 | G14: 244948.219 | H14: 252296.6656 | I14: 259865.5655 | J14: 267661.5325 | K14: 275691.3785 | L14: 283962.1198
A15: Adjustments/Vacancy | B15: =-(B14*0.05) -> -9982.2 | C15: =-(C14*$B8) -> -10881.666 | D15: =-(D14*$B8) -> -11208.11598 | E15: -11544.35946 | F15: -11890.69024 | G15: -12247.41095 | H15: -12614.83328 | I15: -12993.27828 | J15: -13383.07663 | K15: -13784.56892 | L15: -14198.10599
A16: Other Income | B16: ='Rent Roll - December 1, 2025'!G25*12 -> 7800 | C16: =B16*(1+$B6)+(75*12*12) -> 18834 | D16: =C16*(1+B6) -> 19399.02 | E16: =D16*(1+$B6) -> 19980.9906 | F16: =E16*(1+$B6) -> 20580.42032 | G16: 21197.83293 | H16: 21833.76792 | I16: 22488.78095 | J16: 23163.44438 | K16: 23858.34771 | L16: 24574.09814 | M16: pass utilities back @ $75/month/unit
A17: Effective Gross Income | B17: =SUM(B14:B16) -> 197461.8 | C17: =SUM(C14:C16) -> 225585.654 | D17: =SUM(D14:D16) -> 232353.2236 | E17: 239323.8203 | F17: 246503.5349 | G17: 253898.641 | H17: 261515.6002 | I17: 269361.0682 | J17: 277441.9003 | K17: 285765.1573 | L17: 294338.112
A19: EXPENSES
A20: Renting Expense | B20: 8945 | C20: =B20*(1+$B7) -> 9123.9 | D20: 9306.378 | E20: 9492.50556 | F20: 9682.355671 | G20: 9876.002785 | H20: 10073.52284 | I20: 10274.9933 | J20: 10480.49316 | K20: 10690.10303 | L20: 10903.90509
A21: Administrative | B21: =11000-5200 -> 5800 | C21: =B21*(1+$B7) -> 5916 | D21: 6034.32 | E21: 6155.0064 | F21: 6278.106528 | G21: 6403.668659 | H21: 6531.742032 | I21: 6662.376872 | J21: 6795.62441 | K21: 6931.536898 | L21: 7070.167636
A22: Management | B22: =B17*B9 -> 6911.163 | C22: =C17*B9 -> 7895.49789 | D22: =C22*(1+$B7) -> 8053.407848 | E22: 8214.476005 | F22: 8378.765525 | G22: 8546.340835 | H22: 8717.267652 | I22: 8891.613005 | J22: 9069.445265 | K22: 9250.834171 | L22: 9435.850854
A23: Utilities | B23: 25000 | C23: =B23*(1+$B7) -> 25500 | D23: 26010 | E23: 26530.2 | F23: 27060.804 | G23: 27602.02008 | H23: 28154.06048 | I23: 28717.14169 | J23: 29291.48453 | K23: 29877.31422 | L23: 30474.8605
A24: Maintenance | B24: =4824+5000+1051+1937 -> 12812 | C24: =B24*(1+$B7) -> 13068.24 | D24: 13329.6048 | E24: 13596.1969 | F24: 13868.12083 | G24: 14145.48325 | H24: 14428.39292 | I24: 14716.96077 | J24: 15011.29999 | K24: 15311.52599 | L24: 15617.75651
A25: Controlled Expenses | B25: =SUM(B20:B24) -> 59468.163 | C25: =B25*(1+$B7) -> 60657.52626 | D25: 61870.67679 | E25: 63108.09032 | F25: 64370.25213 | G25: 65657.65717 | H25: 66970.81031 | I25: 68310.22652 | J25: 69676.43105 | K25: 71069.95967 | L25: 72491.35886
A26: Taxes & Insurance | B26: 28126 | C26: =B26*(1+$B7) -> 28688.52 | D26: 29262.2904 | E26: 29847.53621 | F26: 30444.48693 | G26: 31053.37667 | H26: 31674.4442 | I26: 32307.93309 | J26: 32954.09175 | K26: 33613.17359 | L26: 34285.43706
A28: NOI | B28: =B17-B25-B26 -> 109867.637 | C28: 136239.6077 | D28: 141220.2564 | E28: 146368.1938 | F28: 151688.7959 | G28: 157187.6071 | H28: 162870.3457 | I28: 168742.9086 | J28: 174811.3775 | K28: 181082.024 | L28: 187561.3161
